bitfinex/quotes_BTCUSD_20250422
["timestamp","ask_amount","ask_price","bid_price","bid_amount"]
[1745362282644,0.0018504,92605.0,92604.0,0.33881729]
[1745362283867,0.0018504,92605.0,92604.0,0.1228439]
[1745362284468,0.0028504,92605.0,92604.0,0.1228439]
[1745362285233,0.0028504,92605.0,92604.0,0.1239233]
[1745362286471,0.0028504,92605.0,92604.0,0.1233439]
[1745362288493,0.0028504,92605.0,92604.0,0.0005]
[1745362288699,0.05514979,92605.0,92604.0,0.0005]
[1745362288905,0.0524504,92605.0,92604.0,0.0005]
[1745362292289,0.0534504,92605.0,92604.0,0.0005]
[1745362292512,0.0561502,92605.0,92604.0,0.0005]
[1745362293327,0.05515029,92605.0,92604.0,0.0005]
[1745362293504,0.05415029,92605.0,92604.0,0.0005]
[1745362293705,0.05815029,92605.0,92604.0,0.0005]
[1745362293912,0.06415029,92605.0,92604.0,0.0005]
[1745362301724,0.17245334,92605.0,92604.0,0.0005]
[1745362302078,0.17145334,92605.0,92604.0,0.0005]
[1745362306954,0.06315029,92605.0,92604.0,0.0005]
[1745362307160,0.0604504,92605.0,92604.0,0.0005]
[1745362308996,0.0048504,92605.0,92604.0,0.0005]
[1745362309332,0.0098504,92605.0,92604.0,0.00157965]
[1745362309764,0.0048504,92605.0,92604.0,0.00157965]
[1745362309986,0.0038504,92605.0,92604.0,0.00157965]
[1745362310211,0.0068504,92605.0,92604.0,0.00157965]
[1745362310439,0.0038504,92605.0,92604.0,0.00157965]
[1745362310857,0.0068504,92605.0,92604.0,0.00157965]
[1745362311560,0.0068504,92605.0,92604.0,0.0005]
[1745362311887,0.0038504,92605.0,92604.0,0.0005]
[1745362312108,0.0008504,92605.0,92604.0,0.0005]
[1745362312321,0.0018504,92605.0,92604.0,0.0005]
[1745362312524,0.0008504,92605.0,92604.0,0.0005]
[1745362312864,0.0048504,92605.0,92604.0,0.0005]
[1745362313501,0.0068504,92605.0,92604.0,0.12442334]
[1745362313705,0.0068504,92605.0,92604.0,0.7059489]
[1745362313908,0.0068504,92605.0,92604.0,0.6117769]
[1745362314956,0.0008504,92605.0,92604.0,0.6117769]
[1745362315345,0.0038504,92605.0,92604.0,0.6117769]
[1745362315534,0.0018504,92605.0,92604.0,0.6117769]
[1745362315733,0.0008504,92605.0,92604.0,0.6117769]
[1745362316300,0.0008504,92605.0,92604.0,0.6127769]
[1745362316694,0.0008504,92605.0,92604.0,0.6117769]
[1745362316912,0.0008504,92605.0,92604.0,0.6127769]
[1745362317124,0.0008504,92605.0,92604.0,0.6122769]
[1745362318000,0.0008504,92605.0,92604.0,0.6112769]
[1745362318206,0.0008504,92605.0,92604.0,0.6122769]
[1745362318366,0.0008504,92605.0,92604.0,0.6152769]
[1745362319404,0.0008496,92606.0,92604.0,0.6152769]
[1745362319405,2e-07,92617.0,92615.0,0.01454085]
[1745362319613,2e-07,92617.0,92614.0,0.0107975]
[1745362319614,0.00013952,92617.0,92616.0,3.4155441]
[1745362319814,9.952e-05,92617.0,92616.0,0.3387893]
[1745362320013,7.96e-05,92623.0,92622.0,0.23047227]
[1745362320216,7.96e-05,92623.0,92622.0,4.15548932]
[1745362320486,0.0008492,92634.0,92631.0,0.21591044]
[1745362320687,0.0008492,92634.0,92631.0,0.35685129]
[1745362320895,0.0008492,92634.0,92631.0,0.9372214]
[1745362321020,0.0008492,92634.0,92631.0,0.9388384]
[1745362321222,0.0008492,92634.0,92631.0,0.9028694]
[1745362322051,0.0008492,92634.0,92631.0,0.66909144]
[1745362322654,0.0008492,92634.0,92631.0,0.67009144]
[1745362322932,0.0008492,92634.0,92631.0,0.88600188]
[1745362323341,0.0008492,92634.0,92631.0,0.68704288]
[1745362323711,0.0010504,92649.0,92638.0,0.21589412]
[1745362323970,0.0008496,92641.0,92640.0,0.21588946]
[1745362324103,0.0008496,92641.0,92640.0,1.80634376]
[1745362324312,0.0008496,92641.0,92640.0,1.76443636]
[1745362324508,0.0008496,92641.0,92640.0,0.88350436]
[1745362325120,0.0018496,92641.0,92640.0,0.88350436]
[1745362325789,0.0008496,92641.0,92640.0,0.88350436]
[1745362326224,0.0028496,92641.0,92640.0,0.88350436]
[1745362327072,0.0494,92667.0,92657.0,0.19426486]
[1745362327278,0.0002,92669.0,92668.0,0.20878265]
[1745362327486,0.0481,92689.0,92680.0,0.01078981]
[1745362327696,0.0481,92689.0,92687.0,0.19420044]
[1745362327908,0.00066489,92689.0,92685.0,0.19420423]
[1745362328124,0.00066489,92689.0,92685.0,0.00107465]
[1745362328332,0.00066489,92689.0,92686.0,0.19420408]
[1745362328535,0.00066489,92689.0,92686.0,0.20499319]
[1745362328735,0.00066489,92689.0,92686.0,0.19420408]
[1745362329551,0.00566489,92689.0,92686.0,0.19420408]
[1745362329934,0.00266489,92689.0,92686.0,0.19420408]
[1745362330909,0.00266489,92689.0,92686.0,0.03705908]
[1745362331125,0.046,92687.0,92657.0,0.13715249]
[1745362331331,0.05059738,92688.0,92657.0,0.13715249]
[1745362331332,0.046,92685.0,92658.0,0.10830305]
[1745362331541,0.0479,92688.0,92669.0,0.19423967]
[1745362331542,0.046,92683.0,92669.0,0.19423967]
[1745362331752,0.00269766,92682.0,92680.0,0.19421576]
[1745362331960,0.046,92683.0,92680.0,0.19421576]
[1745362332167,0.0479,92688.0,92687.0,0.19420199]
[1745362332576,0.00466489,92689.0,92687.0,0.22646016]
[1745362332577,0.00166489,92689.0,92687.0,0.22646016]
[1745362333421,0.003,92688.0,92687.0,0.22646016]
[1745362334569,0.00166489,92689.0,92687.0,0.22646016]
[1745362334975,0.00466489,92689.0,92687.0,0.22646016]
[1745362335185,0.00366489,92689.0,92688.0,0.10937767]
[1745362335390,0.00166489,92689.0,92688.0,0.10937738]
[1745362335559,0.00166489,92689.0,92688.0,0.12391823]
[1745362335886,0.00166489,92689.0,92688.0,3.13040823]
[1745362336114,0.00030198,92689.0,92688.0,2.7595029]
[1745362336263,0.0008494,92698.0,92695.0,0.01078806]
[1745362336466,0.00098874,92698.0,92696.0,0.59740584]
[1745362336667,0.00098874,92698.0,92697.0,0.32702479]
[1745362336885,0.00098874,92698.0,92697.0,0.43425405]
[1745362337117,0.00098874,92698.0,92697.0,0.10830305]
[1745362338510,0.00098874,92698.0,92697.0,0.10930305]
[1745362338735,0.00198874,92698.0,92697.0,0.10930305]
[1745362338940,0.00198874,92698.0,92691.0,0.19419286]
[1745362339135,0.00098874,92698.0,92697.0,0.19418104]
[1745362339447,0.00298874,92698.0,92697.0,0.19418104]
[1745362340261,0.00298874,92698.0,92697.0,0.31809891]
[1745362340465,0.00298874,92698.0,92697.0,0.31702494]
[1745362340676,0.00298874,92698.0,92697.0,0.64972094]
[1745362340828,0.00098874,92698.0,92697.0,0.68795194]
[1745362341023,0.00098874,92698.0,92697.0,0.65198394]
[1745362341255,0.00098874,92698.0,92693.0,0.19418843]
[1745362341427,0.00098874,92698.0,92695.0,0.19418357]
[1745362341801,0.00289664,92709.0,92688.0,0.19519958]
[1745362341802,0.00287367,92709.0,92688.0,0.001]
[1745362342042,0.0453,92708.0,92701.0,0.19417202]
[1745362342263,0.0453,92708.0,92705.0,0.19416388]
[1745362342434,0.00017703,92709.0,92708.0,0.194158]
[1745362344611,0.00217703,92709.0,92708.0,0.194158]
[1745362345106,0.00317703,92709.0,92708.0,0.194158]
[1745362345308,0.00317703,92709.0,92708.0,0.31807533]
[1745362345517,0.00317703,92709.0,92708.0,0.3170019]
[1745362345726,0.00317703,92709.0,92708.0,2.0291629]
[1745362346134,0.00217703,92709.0,92708.0,2.0291629]
[1745362346549,0.00217703,92709.0,92708.0,2.0301629]
[1745362346906,0.0008494,92725.0,92723.0,0.19412504]
[1745362347112,0.0008494,92725.0,92724.0,0.12391614]
[1745362347294,0.0008494,92725.0,92724.0,0.1228439]
[1745362348137,0.0028494,92725.0,92724.0,0.1228439]
[1745362348537,0.0008494,92725.0,92724.0,0.1228439]
[1745362348913,0.0008494,92725.0,92724.0,0.1238439]
[1745362349282,0.0008494,92725.0,92724.0,0.1248439]
[1745362350480,0.0008494,92725.0,92724.0,1.4339189]
[1745362350865,0.0008494,92725.0,92724.0,1.4349189]
[1745362351275,0.0008494,92725.0,92724.0,1.0852649]
[1745362351466,0.0008494,92725.0,92724.0,1.0422969]
[1745362351896,0.0002,92729.0,92725.0,0.20866325]
[1745362352062,0.00098819,92726.0,92725.0,1.2842783]
[1745362352266,0.00098819,92726.0,92725.0,0.7238803]
[1745362353956,0.00098819,92726.0,92725.0,0.7248803]
[1745362356552,0.0003486,92746.0,92745.0,0.19408054]
[1745362356774,0.0003486,92746.0,92745.0,0.1951516]
[1745362357147,0.0003486,92746.0,92739.0,0.19409146]
[1745362357367,0.0957,92745.0,92738.0,0.12564]
[1745362357650,0.0957,92745.0,92738.0,0.15805739]
[1745362358644,0.00269582,92744.0,92738.0,0.15805739]
[1745362359813,0.00269582,92744.0,92738.0,0.03241739]
[1745362360020,0.00269582,92744.0,92725.0,0.1941218]
[1745362360456,0.00269582,92744.0,92725.0,0.20490637]
[1745362360745,0.00269582,92744.0,92725.0,0.22623641]
[1745362361383,0.00269582,92744.0,92733.0,0.19410494]
[1745362361584,0.0957,92745.0,92731.0,0.19410806]
[1745362361759,0.0957,92745.0,92728.0,0.19411416]
[1745362361932,0.00269579,92744.0,92728.0,0.19411416]
[1745362362131,0.00269579,92744.0,92728.0,0.19511416]
[1745362362738,0.0957,92745.0,92729.0,0.00752534]
[1745362363185,0.00269579,92744.0,92729.0,0.00752534]
[1745362363382,0.00269579,92744.0,92730.0,0.00752534]
[1745362364094,0.00269579,92744.0,92731.0,0.00752534]
[1745362364447,0.0957,92745.0,92731.0,0.00752534]
[1745362364675,0.00269579,92744.0,92732.0,0.00752534]
[1745362365303,0.00269579,92744.0,92733.0,0.00752534]
[1745362366280,0.00269579,92744.0,92734.0,0.00752534]
[1745362366867,0.00269579,92744.0,92735.0,0.00752534]
[1745362367840,0.20200305,92743.0,92735.0,0.00752534]
[1745362368106,0.0937,92737.0,92728.0,0.001]
[1745362368331,0.0937,92735.0,92728.0,0.001]
[1745362368541,0.0471,92733.0,92728.0,0.001]
[1745362368782,0.00269635,92732.0,92728.0,0.001]
[1745362369636,0.20200305,92731.0,92728.0,0.001]
[1745362369862,0.0937,92729.0,92692.0,0.09675307]
[1745362370079,0.0471,92726.0,92693.0,0.0107883]
[1745362370301,0.0471,92724.0,92693.0,0.0107883]
[1745362370511,0.0471,92722.0,92692.0,0.29108177]
[1745362370718,0.11099985,92721.0,92692.0,0.29108177]
[1745362370934,0.0937,92720.0,92696.0,0.01078795]
[1745362371149,0.00269676,92719.0,92695.0,0.01078806]
[1745362371373,0.00269676,92719.0,92694.0,0.20604944]
[1745362372026,0.00269676,92719.0,92694.0,0.20497536]
[1745362372405,0.15540305,92718.0,92693.0,0.002]
[1745362372627,0.04979688,92717.0,92693.0,0.002]
[1745362372812,0.10830305,92716.0,92693.0,0.002]
[1745362373035,0.00269688,92715.0,92692.0,0.03234837]
[1745362373192,0.00269688,92715.0,92696.0,0.001]
[1745362373656,0.00269688,92715.0,92695.0,0.01078806]
[1745362373865,0.00269678,92714.0,92693.0,0.0118625]
[1745362374293,0.00269678,92714.0,92695.0,0.19418508]
[1745362374751,0.00269678,92714.0,92693.0,0.2060499]
[1745362374951,0.00269676,92713.0,92693.0,0.2060499]
[1745362375181,0.00269676,92716.0,92694.0,0.01078818]
[1745362375400,0.00269676,92716.0,92693.0,0.2060499]
[1745362375616,0.00269676,92716.0,92695.0,0.19418523]
[1745362377175,0.00369676,92716.0,92695.0,0.19418523]
[1745362377480,0.001,92716.0,92701.0,0.20496003]
[1745362377682,0.00369646,92716.0,92701.0,0.10830305]
[1745362377929,0.001,92716.0,92702.0,0.20495781]
[1745362378353,0.001,92716.0,92702.0,0.19417056]
[1745362378477,0.001,92716.0,92704.0,0.19416637]
[1745362378677,0.001,92716.0,92705.0,0.30246733]
[1745362379029,0.0471,92717.0,92708.0,0.01078655]
[1745362379261,0.001,92716.0,92708.0,0.01078655]
[1745362379463,0.001,92716.0,92707.0,0.19416009]
[1745362379733,0.0471,92717.0,92707.0,0.01186005]
[1745362379940,0.001,92716.0,92707.0,0.01186005]
[1745362380247,0.0471,92717.0,92707.0,0.00107338]
[1745362380443,0.002,92716.0,92707.0,0.00107338]
[1745362380579,0.002,92716.0,92705.0,0.11908995]
[1745362381602,0.002,92716.0,92705.0,0.10830305]
[1745362382013,0.002,92716.0,92699.0,0.20496417]
[1745362382348,0.0471,92717.0,92700.0,0.10830305]
[1745362382551,0.00269646,92716.0,92695.0,0.01078806]
[1745362382759,0.00269646,92716.0,92696.0,0.01078795]
[1745362382953,0.00369646,92716.0,92696.0,0.01078795]
[1745362383154,0.00369646,92716.0,92697.0,0.01078783]
[1745362383362,0.00269646,92716.0,92696.0,0.01078795]
[1745362383680,0.00269646,92716.0,92697.0,0.01078783]
[1745362383875,0.00269646,92716.0,92695.0,0.01078806]
[1745362384202,0.00269646,92716.0,92697.0,0.01078783]
[1745362384394,0.00269646,92716.0,92696.0,0.01178795]
[1745362384597,0.00269646,92716.0,92696.0,0.001]
[1745362385310,0.0475,92714.0,92692.0,0.03234837]
[1745362385526,0.05019675,92713.0,92692.0,0.03234837]
[1745362385743,0.05019675,92713.0,92697.0,0.001]
[1745362386182,0.05019675,92713.0,92696.0,0.001]
[1745362386427,0.0475,92711.0,92696.0,0.001]
[1745362386648,0.05019688,92710.0,92692.0,0.03234837]
[1745362388653,0.047,92712.0,92707.0,0.01078667]
[1745362388880,0.002,92710.0,92708.0,0.402434]
[1745362389068,0.0475,92717.0,92708.0,0.375979]
[1745362389292,0.0475,92717.0,92708.0,0.212416]
[1745362389482,0.0475,92717.0,92705.0,0.0107869]
[1745362389682,0.0475,92717.0,92706.0,0.238216]
[1745362389928,0.0475,92717.0,92707.0,0.152619]
[1745362390104,0.001,92710.0,92706.0,0.41426742]
[1745362390306,0.0475,92717.0,92706.0,0.41426742]
[1745362390307,0.0475,92717.0,92706.0,0.20494842]
[1745362390479,0.0475,92717.0,92705.0,0.11908995]
[1745362390681,0.0485,92717.0,92705.0,0.11908995]
[1745362391472,0.0485,92717.0,92705.0,0.10830305]
[1745362391674,0.0485,92717.0,92705.0,0.11908995]
[1745362391878,0.0475,92717.0,92705.0,0.11908995]
[1745362392354,0.0475,92717.0,92705.0,0.10830305]
[1745362392895,0.0475,92717.0,92706.0,0.19416219]
[1745362396170,0.0475,92717.0,92710.0,0.19415245]
[1745362397094,0.0475,92717.0,92706.0,0.19416219]
[1745362397293,0.0475,92717.0,92708.0,0.19415646]
[1745362398036,0.0475,92717.0,92709.0,0.19415408]
[1745362398237,0.0475,92717.0,92714.0,0.19414512]
[1745362398697,0.0485,92717.0,92714.0,0.19414512]
[1745362398903,0.0475,92717.0,92714.0,0.19414365]
[1745362399115,0.0475,92717.0,92709.0,0.19415408]
[1745362399324,0.00269638,92716.0,92688.0,0.13590888]
[1745362399541,0.00269638,92716.0,92703.0,0.19416652]
[1745362400683,0.0487,92714.0,92692.0,0.03234837]
[1745362400860,0.0487,92712.0,92695.0,0.19418354]
[1745362401070,0.00269691,92711.0,92692.0,0.22653878]
[1745362401199,0.00269691,92711.0,92693.0,0.19418736]
[1745362401594,0.00269691,92711.0,92696.0,0.19418294]
[1745362402415,0.00369691,92711.0,92694.0,0.1941857]
[1745362402594,0.00469691,92711.0,92694.0,0.1941857]
[1745362402746,0.00269691,92711.0,92694.0,0.1941857]
[1745362402958,0.00369691,92711.0,92694.0,0.1941857]
[1745362403384,0.00269691,92711.0,92694.0,0.1941857]
[1745362403557,0.00369691,92711.0,92694.0,0.1941857]
[1745362404092,0.00369691,92711.0,92695.0,0.19418326]
[1745362404093,0.0052097,92711.0,92695.0,0.19418326]
[1745362404252,0.0052097,92711.0,92694.0,0.1941857]
[1745362404451,0.0032097,92711.0,92694.0,0.1941857]
[1745362404857,0.0042097,92711.0,92692.0,0.03234837]
[1745362405063,0.0052097,92711.0,92692.0,0.03234837]
[1745362405499,0.0032097,92711.0,92692.0,0.22653786]
[1745362405706,0.0032097,92711.0,92693.0,0.19418733]
[1745362406114,0.0022097,92711.0,92693.0,0.19418733]
[1745362406352,0.0032097,92711.0,92693.0,0.19418733]
[1745362406679,0.0022097,92711.0,92693.0,0.19418733]
[1745362407013,0.0032097,92711.0,92693.0,0.19418733]
[1745362407561,0.0032097,92711.0,92692.0,0.22653786]
[1745362407797,0.002,92711.0,92705.0,0.19416331]
[1745362408217,0.002,92711.0,92707.0,0.19415968]
[1745362408594,0.001,92711.0,92709.0,0.19415421]
[1745362408800,0.0477,92715.0,92709.0,0.19415421]
[1745362409094,0.002,92711.0,92709.0,0.19415421]
[1745362409325,0.0477,92715.0,92709.0,0.19415421]
[1745362409700,0.001,92711.0,92709.0,0.19415421]
[1745362409906,0.0477,92715.0,92703.0,0.19416838]
[1745362410075,0.00269654,92714.0,92705.0,0.19416401]
[1745362410261,0.00269654,92714.0,92710.0,0.19415341]
[1745362410662,0.00269654,92714.0,92712.0,0.19414903]
[1745362410867,0.0497,92715.0,92712.0,0.19414903]
[1745362411522,0.0477,92715.0,92712.0,0.19414903]
[1745362411711,0.0497,92715.0,92714.0,0.19414543]
[1745362412085,0.0477,92715.0,92714.0,0.19414543]
[1745362412539,0.0517,92715.0,92714.0,0.19414543]
[1745362412936,0.0537,92715.0,92714.0,0.19414543]
[1745362413936,0.0517,92715.0,92714.0,0.19414543]
[1745362414721,0.0547,92715.0,92714.0,0.19414543]
[1745362415659,0.0547,92715.0,92712.0,0.18990868]
[1745362416131,0.007,92715.0,92714.0,0.19414543]
[1745362416333,0.003,92715.0,92714.0,0.19570562]
[1745362416736,0.005,92715.0,92714.0,0.31698933]
[1745362416905,0.002,92715.0,92714.0,0.31798933]
[1745362417043,0.0482,92739.0,92728.0,0.01078422]
[1745362417243,0.0464,92744.0,92738.0,0.19409519]
[1745362417487,0.0464,92744.0,92740.0,0.1940896]
[1745362417856,0.0464,92744.0,92738.0,0.19409519]
[1745362418482,0.0464,92744.0,92739.0,0.19409114]
[1745362418768,0.0494,92744.0,92739.0,0.19409114]
[1745362418975,0.0494,92744.0,92740.0,0.19408895]
[1745362419201,0.0514,92744.0,92740.0,0.19408895]
[1745362419805,0.0534,92744.0,92740.0,0.19408895]
[1745362420058,0.0504,92744.0,92740.0,0.19408895]
[1745362420191,0.0994,92744.0,92740.0,0.22184515]
[1745362421042,0.0954,92744.0,92740.0,0.22184515]
[1745362422660,0.0954,92744.0,92743.0,0.19408472]
[1745362424215,0.0954,92744.0,92741.0,0.19408891]
[1745362424422,0.0954,92744.0,92738.0,0.19409454]
[1745362424840,0.0954,92744.0,92738.0,0.22156317]
[1745362425284,0.0954,92744.0,92739.0,0.19409119]
[1745362425418,0.0954,92744.0,92738.0,0.02746863]
[1745362425621,0.0954,92744.0,92738.0,0.19409507]
[1745362426117,0.0954,92744.0,92736.0,0.19409906]
[1745362426365,0.0954,92744.0,92737.0,0.19409519]
[1745362427145,0.0954,92744.0,92736.0,0.19409906]
[1745362427343,0.00269566,92743.0,92722.0,0.1941285]
[1745362427569,0.00269566,92743.0,92723.0,0.01078481]
[1745362427725,0.00269566,92743.0,92727.0,0.19411621]
[1745362428733,0.00269566,92743.0,92726.0,0.19412031]
[1745362429876,0.00269566,92743.0,92727.0,0.002]
[1745362430255,0.00269566,92743.0,92726.0,0.19412031]
[1745362430471,0.00269566,92743.0,92726.0,0.001]
[1745362430959,0.00269566,92743.0,92722.0,0.027169]
[1745362430960,0.15690305,92742.0,92722.0,0.027169]
[1745362431164,0.0486,92740.0,92722.0,0.027169]
[1745362431338,0.11099928,92739.0,92727.0,0.001]
[1745362431537,0.0486,92738.0,92727.0,0.001]
[1745362431744,0.00269623,92737.0,92727.0,0.001]
[1745362432182,0.0512961,92738.0,92727.0,0.001]
[1745362432578,0.0512961,92738.0,92722.0,0.02752019]
[1745362432925,0.0512961,92738.0,92721.0,0.01078504]
[1745362433149,0.002696,92737.0,92724.0,0.19412449]
[1745362433763,0.0486,92738.0,92724.0,0.19412449]
[1745362434007,0.0486,92738.0,92724.0,0.20490918]
[1745362434209,0.049,92741.0,92728.0,0.27518096]
[1745362434498,0.049,92741.0,92733.0,0.194105]
[1745362435329,0.049,92741.0,92729.0,0.30241516]
[1745362435729,0.049,92741.0,92731.0,0.19410923]
[1745362436693,0.049,92741.0,92729.0,0.10930305]
[1745362436902,0.049,92741.0,92730.0,0.1725422]
[1745362437102,0.00269567,92740.0,92724.0,0.17255351]
[1745362437306,0.00269567,92740.0,92722.0,0.17255841]
[1745362437307,0.00269567,92740.0,92726.0,0.17254973]
[1745362437515,0.049,92741.0,92727.0,0.28085091]
[1745362437711,0.049,92741.0,92730.0,0.17254272]
[1745362438219,0.049,92741.0,92728.0,0.17254766]
[1745362438414,0.049,92741.0,92730.0,0.17254394]
[1745362438834,0.049,92741.0,92730.0,0.17354394]
[1745362440580,0.049,92741.0,92730.0,0.001]
[1745362440829,0.049,92741.0,92730.0,0.00068898]
[1745362441003,0.049,92741.0,92731.0,0.17254208]
[1745362441883,0.049,92741.0,92732.0,0.10986232]
[1745362442093,0.049,92741.0,92718.0,0.01078539]
[1745362442310,0.0026957,92740.0,92723.0,0.10830305]
[1745362443254,0.0467,92739.0,92722.0,0.002]
[1745362443410,0.002696,92738.0,92722.0,0.002]
[1745362443783,0.002696,92738.0,92720.0,0.17256235]
[1745362444060,0.002696,92738.0,92723.0,0.002]
[1745362445062,0.002696,92738.0,92723.0,0.001]
[1745362445475,0.002696,92738.0,92722.0,0.17255769]
[1745362447269,0.0467,92739.0,92723.0,0.17255533]
[1745362448283,0.049396,92739.0,92723.0,0.17255533]
[1745362449120,0.0467,92739.0,92724.0,0.17255345]
[1745362449277,0.0467,92739.0,92723.0,0.17255533]
[1745362449471,0.0467,92739.0,92720.0,0.27518096]
[1745362449674,0.002696,92738.0,92717.0,0.02760315]
[1745362449898,0.002696,92738.0,92717.0,0.10830305]
[1745362450102,0.002696,92738.0,92709.0,0.67258239]
[1745362450103,0.0493,92736.0,92709.0,0.67258239]
[1745362450279,0.04939622,92735.0,92710.0,0.10830305]
[1745362450510,0.0493,92734.0,92709.0,0.5]
[1745362450829,0.04939639,92733.0,92709.0,0.5]
[1745362451010,0.0467,92731.0,92709.0,0.5]
[1745362451217,0.0467,92727.0,92709.0,0.503]
[1745362451427,0.00269649,92726.0,92709.0,0.53065637]
[1745362451635,0.00269649,92726.0,92709.0,0.52765637]
[1745362452036,0.00269649,92726.0,92709.0,0.53065637]
[1745362452248,0.00269649,92726.0,92709.0,0.52765637]
[1745362459433,0.0955,92725.0,92709.0,0.52765637]
[1745362459595,0.00269649,92724.0,92709.0,0.52765637]
[1745362463585,0.00269649,92724.0,92709.0,0.02765637]
[1745362463788,0.00269649,92724.0,92707.0,0.00013919]
[1745362464770,0.00269649,92724.0,92707.0,0.02483062]
[1745362467712,0.0469,92723.0,92707.0,0.02483062]
[1745362467918,0.04959663,92722.0,92707.0,0.02483062]
[1745362468952,0.15520305,92721.0,92707.0,0.02483062]
[1745362469153,0.0469,92718.0,92707.0,0.02483062]
[1745362469326,0.00269679,92720.0,92707.0,0.02483062]
[1745362469327,0.11099983,92717.0,92707.0,0.02483062]
[1745362469529,0.0477,92712.0,92707.0,0.00013919]
[1745362469706,0.0469,92709.0,92707.0,0.00013919]
[1745362469908,0.11100018,92708.0,92707.0,0.00013919]
[1745362470114,0.0469,92709.0,92707.0,0.00013919]
[1745362470415,0.0477,92710.0,92707.0,0.00013919]
[1745362471251,0.001,92709.0,92707.0,0.00013919]
[1745362471454,0.0477,92710.0,92707.0,0.00013919]
[1745362472027,0.0487,92710.0,92707.0,0.00013919]
[1745362472137,0.0477,92710.0,92707.0,0.00013919]
[1745362472698,0.00269663,92709.0,92707.0,0.00013919]
[1745362473891,0.00469663,92709.0,92707.0,0.00013919]
[1745362475080,0.0469,92708.0,92707.0,0.00013919]
[1745362477782,0.0479,92708.0,92707.0,0.00013919]
[1745362477944,0.0489,92708.0,92707.0,0.00013919]
[1745362478143,0.0499,92708.0,92707.0,0.00013919]
[1745362479750,0.003,92708.0,92707.0,0.00013919]
[1745362480598,0.0469,92722.0,92707.0,0.00013919]
[1745362480774,0.0469,92722.0,92710.0,0.27518096]
[1745362480989,0.001,92708.0,92707.0,0.00013919]
[1745362481627,0.00269648,92721.0,92707.0,0.00013919]
[1745362483777,0.00369648,92721.0,92707.0,0.00013919]
[1745362484971,0.00469648,92721.0,92707.0,0.00013919]
[1745362485168,0.002,92721.0,92707.0,0.00013919]
[1745362486660,0.00269648,92720.0,92707.0,0.00013919]
[1745362487217,0.002,92721.0,92712.0,0.01078609]
[1745362487463,0.001,92721.0,92712.0,0.10830305]
[1745362487639,0.00269619,92728.0,92712.0,0.10830305]
[1745362487845,0.002,92720.0,92712.0,0.10830305]
[1745362488237,0.00269619,92728.0,92718.0,0.01078539]
[1745362488592,0.0497,92742.0,92718.0,0.01078539]
[1745362488593,0.0497,92742.0,92726.0,0.17255002]
[1745362488800,0.00269595,92741.0,92727.0,0.27518096]
[1745362490181,0.0497,92742.0,92728.0,0.28241043]
[1745362490566,0.00269572,92741.0,92728.0,0.10830305]
[1745362490955,0.00369572,92741.0,92728.0,0.10830305]
[1745362491096,0.00469572,92741.0,92728.0,0.10830305]
[1745362491296,0.00369572,92741.0,92728.0,0.10830305]
[1745362491497,0.00269572,92741.0,92730.0,0.27518096]
[1745362491702,0.00469572,92741.0,92730.0,0.27518096]
[1745362493027,0.00369572,92741.0,92730.0,0.27518096]
[1745362493280,0.00469572,92741.0,92730.0,0.27518096]
[1745362493708,0.00369572,92741.0,92730.0,0.27518096]
[1745362493917,0.00269572,92741.0,92730.0,0.27518096]
[1745362494120,0.00469572,92741.0,92730.0,0.27518096]
[1745362494354,0.00369572,92741.0,92730.0,0.27518096]
[1745362494673,0.00469572,92741.0,92730.0,0.27518096]
[1745362499079,0.002,92741.0,92730.0,0.27518096]
[1745362502195,0.002,92741.0,92731.0,0.11908693]
[1745362502393,0.002,92741.0,92731.0,0.28240443]
[1745362502591,0.001,92741.0,92731.0,0.28084513]
[1745362502818,0.001,92741.0,92732.0,0.00155908]
[1745362503012,0.0455,92749.0,92732.0,0.10986213]
[1745362503712,0.0455,92749.0,92730.0,0.27518096]
[1745362503713,0.00269561,92748.0,92730.0,0.27518096]
[1745362503916,0.00269561,92748.0,92724.0,0.01454085]
[1745362504118,0.00269561,92748.0,92725.0,0.10830305]
[1745362504524,0.00269561,92748.0,92730.0,0.27518096]
[1745362504983,0.00269561,92748.0,92725.0,0.10830305]
[1745362505191,0.0453,92745.0,92725.0,0.10830305]
[1745362505402,0.0453,92745.0,92724.0,0.001]
[1745362505403,0.0929,92744.0,92724.0,0.001]
[1745362505581,0.20389937,92743.0,92724.0,0.001]
[1745362505726,0.0453,92742.0,92724.0,0.001]
[1745362505951,0.00269607,92741.0,92724.0,0.001]
[1745362506490,0.00269607,92741.0,92720.0,0.27518096]
[1745362507243,0.00369607,92741.0,92730.0,0.27518096]
[1745362508714,0.00269607,92741.0,92730.0,0.27518096]
[1745362509097,0.00269607,92741.0,92721.0,0.10830305]
[1745362509297,0.00369607,92741.0,92722.0,0.48156076]
[1745362509616,0.00369607,92741.0,92723.0,0.404308]
[1745362509819,0.00369607,92741.0,92722.0,0.479341]
[1745362509974,0.00469607,92741.0,92722.0,0.395898]
[1745362510179,0.00369607,92741.0,92721.0,0.10830305]
[1745362510380,0.00269607,92741.0,92722.0,0.00155976]
[1745362510879,0.00269607,92741.0,92721.0,0.10830305]
[1745362513387,0.00269607,92741.0,92722.0,0.17411859]
[1745362513585,0.00269607,92741.0,92721.0,0.28086373]
[1745362517944,0.00269607,92741.0,92720.0,0.27518096]
[1745362518283,0.00269607,92741.0,92721.0,0.17256068]
[1745362518524,0.00269607,92741.0,92724.0,0.17255383]
[1745362518733,0.0453,92742.0,92724.0,0.17255383]
[1745362518734,0.0453,92742.0,92730.0,0.27518096]
[1745362519411,0.0453,92742.0,92727.0,0.17254793]
[1745362519591,0.0453,92742.0,92731.0,0.17254208]
[1745362519793,0.0453,92742.0,92730.0,0.27518096]
[1745362520000,0.0453,92742.0,92731.0,0.17254208]
[1745362521027,0.0453,92742.0,92732.0,0.81103139]
[1745362521229,0.0453,92742.0,92730.0,0.27518096]
[1745362521430,0.0453,92742.0,92731.0,0.17254208]
[1745362521688,0.0453,92742.0,92736.0,0.17253112]
[1745362521888,0.0453,92742.0,92732.0,0.17254022]
[1745362522414,0.0453,92742.0,92733.0,0.1725366]
[1745362522948,0.04539503,92742.0,92733.0,0.1725366]
[1745362524331,0.04539503,92742.0,92728.0,0.17254671]
[1745362524494,0.04539503,92742.0,92720.0,0.17256171]
[1745362524495,0.00269566,92741.0,92725.0,0.17255304]
[1745362524746,0.04539503,92742.0,92727.0,0.1725493]
[1745362524930,0.04639503,92742.0,92720.0,0.27518096]
[1745362525149,0.0486,92740.0,92716.0,0.17256996]
[1745362525303,0.00269602,92739.0,92720.0,0.28596611]